fUSD/lending_fUSD_20240619
["ID","MTS","AMOUNT","RATE_DAILY","PERIOD"]
[329909153,1718823033113,-447.43,0.0001237,2]
[329909154,1718823033122,-418.17,0.00012512,2]
[329909155,1718823033132,-418.17,0.00012512,2]
[329909156,1718823033141,-418.17,0.00012512,2]
[329909157,1718823033150,-418.17,0.00012512,2]
[329909158,1718823033159,-403.27,0.00012512,2]
[329909159,1718823033169,-1500.0,0.00012716,2]
[329909160,1718823033178,-1500.0,0.00012716,2]
[329909161,1718823033187,-1500.0,0.00012718,2]
[329909162,1718823033196,-1500.0,0.00012721,2]
[329909163,1718823033205,-150.0,0.00012724,2]
[329909164,1718823033215,-150.0,0.00012727,2]
[329909165,1718823033223,-1500.0,0.00012727,2]
[329909166,1718823033233,-150.0,0.00012728,2]
[329909167,1718823033242,-1500.0,0.00012729,2]
[329909168,1718823033251,-150.0,0.0001273,2]
[329909169,1718823033260,-1500.0,0.00012731,2]
[329909170,1718823033269,-150.0,0.00012732,2]
[329909171,1718823033278,-1500.0,0.00012732,2]
[329909172,1718823033287,-150.0,0.00012733,2]
[329909173,1718823033296,-150.0,0.00012734,2]
[329909174,1718823033305,-1500.0,0.00012734,2]
[329909175,1718823033314,-300.0,0.00012735,2]
[329909176,1718823033323,-150.0,0.00012737,2]
[329909177,1718823033333,-1500.0,0.00012738,2]
[329909178,1718823033342,-150.0,0.0001274,2]
[329909179,1718823033351,-150.0,0.00012741,2]
[329909180,1718823033360,-150.0,0.00012741,2]
[329909181,1718823033369,-150.0,0.00012741,2]
[329909182,1718823033378,-150.0,0.00012742,2]
[329909183,1718823033388,-300.0,0.00012742,2]
[329909184,1718823033397,-150.0,0.00012744,2]
[329909185,1718823033407,-150.0,0.00012745,2]
[329909186,1718823033416,-1500.0,0.00012747,2]
[329909187,1718823033425,-150.0,0.00012749,2]
[329909188,1718823033434,-150.0,0.0001275,2]
[329909189,1718823033443,-150.0,0.00012751,2]
[329909190,1718823033452,-300.0,0.00012752,2]
[329909191,1718823033461,-150.0,0.00012755,2]
[329909192,1718823033470,-150.0,0.00012755,2]
[329909193,1718823033479,-150.0,0.00012755,2]
[329909194,1718823033488,-150.0,0.00012757,2]
[329909195,1718823033496,-150.0,0.00012758,2]
[329909196,1718823033505,-150.0,0.00012759,2]
[329909197,1718823033515,-150.0,0.00012761,2]
[329909198,1718823033524,-1500.0,0.00012761,2]
[329909199,1718823033533,-150.0,0.00012762,2]
[329909200,1718823033542,-150.0,0.00012762,2]
[329909201,1718823033554,-150.0,0.00012764,2]
[329909202,1718823033563,-150.0,0.00012765,2]
[329909203,1718823033573,-150.0,0.00012765,2]
[329909204,1718823033582,-150.0,0.00012766,2]
[329909205,1718823033591,-150.0,0.00012766,2]
[329909206,1718823033600,-1500.0,0.00012766,2]
[329909207,1718823033609,-1500.0,0.00012766,2]
[329909208,1718823033618,-155.12676373,0.00012767,2]
[329909209,1718823033629,-150.0,0.00012768,2]
[329909210,1718823033638,-1500.0,0.0001277,2]
[329909211,1718823033650,-150.0,0.00012771,2]
[329909212,1718823033659,-150.0,0.00012771,2]
[329909213,1718823033668,-150.0,0.00012771,2]
[329909214,1718823033677,-1500.0,0.00012771,2]
[329909215,1718823033686,-150.0,0.00012775,2]
[329909216,1718823033695,-150.0,0.00012776,2]
[329909217,1718823033705,-175.41202405,0.00012777,2]
[329909218,1718823033714,-1500.0,0.00012778,2]
[329909219,1718823033725,-150.0,0.00012781,2]
[329909220,1718823033735,-1500.0,0.00012781,2]
[329909221,1718823033744,-150.0,0.00012782,2]
[329909222,1718823033755,-300.0,0.00012785,2]
[329909223,1718823033765,-1500.0,0.00012786,2]
[329909224,1718823033776,-150.0,0.00012787,2]
[329909225,1718823033787,-150.0,0.00012788,2]
[329909226,1718823033798,-1500.0,0.00012791,2]
[329909227,1718823033808,-150.0,0.00012793,2]
[329909228,1718823033817,-150.0,0.00012795,2]
[329909229,1718823033827,-150.0,0.00012798,2]
[329909230,1718823033837,-300.0,0.00012799,2]
[329909231,1718823033847,-300.82,0.000128,2]
[329909232,1718823033857,-337.997,0.000128,2]
[329909233,1718823033868,-281.1116,0.000128,2]
[329909234,1718823033880,-88594.0950138,0.000128,2]
[329909235,1718823033889,-7500.0,0.000128,2]
[329909236,1718823033898,-172.71621411,0.000128,2]
[329909237,1718823033908,-1000.0,0.000128,2]
[329909238,1718823033917,-150.0,0.000128,2]
[329909239,1718823033928,-150.0,0.00012801,2]
[329909240,1718823033938,-1500.0,0.00012801,2]
[329909241,1718823033948,-1500.0,0.00012802,2]
[329909242,1718823033958,-1500.0,0.00012803,2]
[329909243,1718823033968,-150.0,0.00012803,2]
[329909244,1718823033978,-1500.0,0.00012803,2]
[329909245,1718823033987,-150.0,0.00012805,2]
[329909246,1718823033997,-150.0,0.00012806,2]
[329909247,1718823034007,-150.0,0.00012806,2]
[329909248,1718823034016,-178.32537667,0.00012806,2]
[329909249,1718823034027,-1500.0,0.00012806,2]
[329909250,1718823034038,-150.0,0.00012807,2]
[329909251,1718823034047,-1500.0,0.00012807,2]
[329909252,1718823034057,-150.0,0.00012807,2]
[329909253,1718823034066,-150.0,0.00012807,2]
[329909254,1718823034076,-1500.0,0.00012808,2]
[329909255,1718823034085,-300.0,0.00012809,2]
[329909256,1718823034095,-150.0,0.0001281,2]
[329909257,1718823034106,-1500.0,0.00012811,2]
[329909258,1718823034116,-1500.0,0.00012811,2]
[329909259,1718823034127,-150.0,0.00012815,2]
[329909260,1718823034136,-1500.0,0.00012815,2]
[329909261,1718823034146,-150.0,0.00012817,2]
[329909262,1718823034156,-150.0,0.00012818,2]
[329909263,1718823034166,-1500.0,0.00012822,2]
[329909264,1718823034176,-150.0,0.00012825,2]
[329909265,1718823034186,-150.0,0.00012827,2]
[329909266,1718823034196,-150.0,0.00012829,2]
[329909267,1718823034470,-1500.0,0.00012831,2]
[329909268,1718823034480,-150.0,0.00012832,2]
[329909269,1718823034490,-150.0,0.00012833,2]
[329909270,1718823034500,-150.0,0.00012835,2]
[329909271,1718823034510,-150.0,0.00012836,2]
[329909272,1718823034519,-150.0,0.00012842,2]
[329909273,1718823034529,-150.0,0.00012844,2]
[329909274,1718823034538,-150.0,0.00012846,2]
[329909275,1718823034550,-315.35119243,0.00012847,2]
[329909276,1718823034561,-150.0,0.00012848,2]
[329909277,1718823034572,-150.0,0.0001285,2]
[329909278,1718823034582,-150.0,0.0001285,2]
[329909279,1718823034592,-150.0,0.0001285,2]
[329909280,1718823034601,-1500.0,0.0001285,2]
[329909281,1718823034610,-150.0,0.00012851,2]
[329909282,1718823034620,-150.0,0.00012855,2]
[329909283,1718823034631,-150.0,0.00012857,2]
[329909284,1718823034641,-150.0,0.00012861,2]
[329909285,1718823034651,-1500.0,0.00012861,2]
[329909286,1718823034660,-1500.0,0.00012863,2]
[329909287,1718823034669,-1500.0,0.00012865,2]
[329909288,1718823034679,-150.0,0.00012868,2]
[329909289,1718823034688,-1454.08142195,0.00012868,2]
[329909290,1718823034697,-150.0,0.0001287,2]
[329909291,1718823034706,-150.0,0.00012871,2]
[329909292,1718823034716,-300.0,0.00012874,2]
[329909293,1718823034725,-1500.0,0.00012878,2]
[329909294,1718823034735,-150.0,0.00012879,2]
[329909295,1718823034744,-150.0,0.00012881,2]
[329909296,1718823034755,-150.0,0.00012883,2]
[329909297,1718823034764,-150.0,0.00012883,2]
[329909298,1718823034774,-150.0,0.00012885,2]
[329909299,1718823034785,-150.0,0.00012889,2]
[329909300,1718823034795,-300.0,0.00012893,2]
[329909301,1718823034805,-1493.14993518,0.00012897,2]
[329909302,1718823034815,-9956.357982,0.000129,2]
[329909303,1718823034825,-500.0,0.000129,2]
[329909304,1718823034834,-121118.72194323,0.000129,2]
[329909305,1718823035438,-1311.4177585,0.000129,2]
[329909306,1718823035453,-259.94301548,0.000129,2]
[329909307,1718823035465,-2657.2665935,0.000129,2]
[329909308,1718823035675,-730.99343815,0.000129,2]
[329909309,1718823035687,-1075.9549519,0.000129,2]
[329909310,1718823036161,180.91246008,0.0001,2]
[329909319,1718823038891,-16707.07,0.00010841,2]
[329909320,1718823038901,-117845.70229924,0.000129,2]
[329909321,1718823038911,-39380.1465,0.000129,2]
[329909322,1718823038922,-1000.0,0.000129,2]
[329909323,1718823038932,-100000.0,0.000129,2]
[329909324,1718823038942,-10000.0,0.000129,2]
[329909325,1718823038951,-1000.0,0.000129,2]
[329909326,1718823038961,-5854.67741358,0.000129,2]
[329909327,1718823038971,-13846.55047256,0.000129,2]
[329909328,1718823038981,-151.0,0.000129,2]
[329909329,1718823038991,-151.0,0.000129,2]
[329909330,1718823039000,-154.072148,0.000129,2]
[329909331,1718823039010,-152.526541,0.000129,2]
[329909332,1718823039020,-151.0,0.000129,2]
[329909333,1718823039030,-151.0,0.000129,2]
[329909334,1718823039040,-151.0,0.000129,2]
[329909335,1718823039050,-151.0,0.000129,2]
[329909336,1718823039060,-151.0,0.000129,2]
[329909337,1718823039070,-151.0,0.000129,2]
[329909338,1718823039080,-151.0,0.000129,2]
[329909339,1718823039091,-581.0,0.000129,2]
[329909340,1718823039100,-1799.04626,0.000129,2]
[329909341,1718823039111,-236.2123824,0.000129,2]
[329909342,1718823039121,-236.21238237,0.000129,2]
[329909343,1718823039132,-236.21238237,0.000129,2]
[329909344,1718823039142,-236.21238237,0.000129,2]
[329909345,1718823039152,-236.21238237,0.000129,2]
[329909346,1718823039167,-236.21238237,0.000129,2]
[329909347,1718823039178,-2876.26266733,0.000129,2]
[329909348,1718823039189,-339.25724206,0.000129,2]
[329909349,1718823039199,-150.0,0.00012901,2]
[329909350,1718823039209,-1500.0,0.00012902,2]
[329909351,1718823039220,-150.0,0.00012903,2]
[329909352,1718823039231,-1500.0,0.00012905,2]
[329909353,1718823039241,-150.0,0.00012907,2]
[329909354,1718823039251,-150.0,0.00012908,2]
[329909355,1718823039262,-151.0,0.00012908,2]
[329909356,1718823039272,-151.0,0.00012908,2]
[329909357,1718823039282,-151.0,0.00012908,2]
[329909358,1718823039292,-151.0,0.00012908,2]
[329909359,1718823039303,-151.0,0.00012908,2]
[329909360,1718823039313,-151.0,0.00012908,2]
[329909361,1718823039323,-151.0,0.00012908,2]
[329909362,1718823039333,-151.0,0.00012908,2]
[329909363,1718823039343,-151.0,0.00012908,2]
[329909364,1718823039353,-151.0,0.00012908,2]
[329909365,1718823039363,-151.0,0.00012908,2]
[329909366,1718823039374,-151.0,0.00012908,2]
[329909367,1718823039386,-151.0,0.00012908,2]
[329909368,1718823039396,-151.0,0.00012908,2]
[329909369,1718823039407,-151.0,0.00012908,2]
[329909370,1718823039416,-233.52965,0.00012908,2]
[329909371,1718823039426,-151.0,0.00012908,2]
[329909372,1718823039436,-151.0,0.00012908,2]
[329909373,1718823039448,-151.0,0.00012908,2]
[329909374,1718823039458,-151.0,0.00012908,2]
[329909375,1718823039469,-152.067095,0.00012908,2]
[329909376,1718823039479,-151.639851,0.00012908,2]
[329909377,1718823039489,-154.663416,0.00012908,2]
[329909378,1718823039499,-151.0,0.00012908,2]
[329909379,1718823039509,-155.703486,0.00012908,2]
[329909380,1718823039519,-151.0,0.00012908,2]
[329909381,1718823039529,-151.0,0.00012908,2]
[329909382,1718823039539,-151.0,0.00012908,2]
[329909383,1718823039552,-151.0,0.00012908,2]
[329909384,1718823039564,-151.0,0.00012908,2]
[329909385,1718823039574,-151.0,0.00012908,2]
[329909386,1718823039586,-151.0,0.00012908,2]
[329909387,1718823039598,-151.0,0.00012908,2]
[329909388,1718823039607,-205.506376,0.00012908,2]
[329909389,1718823039618,-205.506376,0.00012908,2]
[329909390,1718823039630,-151.0,0.00012908,2]
[329909391,1718823039640,-152.51118,0.00012908,2]
[329909392,1718823039650,-151.0,0.00012908,2]
[329909393,1718823039661,-151.0,0.00012908,2]
[329909394,1718823039671,-151.0,0.00012908,2]
[329909395,1718823039681,-151.0,0.00012908,2]
[329909396,1718823039692,-151.0,0.00012908,2]
[329909397,1718823039703,-151.0,0.00012908,2]
[329909398,1718823039714,-291.86225,0.00012908,2]
[329909399,1718823039724,-151.0,0.00012908,2]
[329909400,1718823039735,-151.0,0.00012908,2]
[329909401,1718823039746,-151.0,0.00012908,2]
[329909402,1718823039756,-151.0,0.00012908,2]
[329909403,1718823039767,-151.0,0.00012908,2]
[329909404,1718823039777,-230.369848,0.00012908,2]
[329909405,1718823039788,-151.0,0.00012908,2]
[329909406,1718823039800,-151.0,0.00012908,2]
[329909407,1718823039810,-151.0,0.00012908,2]
[329909408,1718823039820,-151.0,0.00012908,2]
[329909409,1718823039832,-151.0,0.00012908,2]
[329909410,1718823039843,-1735.60025,0.00012908,2]
[329909411,1718823039854,-1735.60025,0.00012908,2]
[329909412,1718823039864,-151.0,0.00012908,2]
[329909413,1718823039875,-151.0,0.00012908,2]
[329909414,1718823039888,-151.0,0.00012908,2]
[329909415,1718823039900,-151.0,0.00012908,2]
[329909416,1718823039911,-151.0,0.00012908,2]
[329909417,1718823039921,-151.0,0.00012908,2]
[329909418,1718823039932,-151.0,0.00012908,2]
[329909419,1718823039944,-151.0,0.00012908,2]
[329909420,1718823039954,-151.0,0.00012908,2]
[329909421,1718823039964,-151.0,0.00012908,2]
[329909422,1718823039974,-164.483496,0.00012908,2]
[329909423,1718823039984,-552.127877,0.00012908,2]
[329909424,1718823039994,-151.0,0.00012908,2]
[329909425,1718823040003,-151.0,0.00012908,2]
[329909426,1718823040014,-164.483496,0.00012908,2]
[329909427,1718823040025,-552.127877,0.00012908,2]
[329909428,1718823040035,-151.0,0.00012908,2]
[329909429,1718823040044,-151.0,0.00012908,2]
[329909430,1718823040055,-151.0,0.00012908,2]
[329909431,1718823040065,-151.0,0.00012908,2]
[329909432,1718823040075,-150.0,0.0001291,2]
[329909433,1718823040085,-150.0,0.0001291,2]
[329909434,1718823040095,-150.0,0.00012914,2]
[329909435,1718823040106,-1500.0,0.00012915,2]
[329909436,1718823040116,-150.0,0.00012921,2]
[329909437,1718823040127,-150.0,0.00012921,2]
[329909438,1718823040139,-150.0,0.00012921,2]
[329909439,1718823040150,-150.0,0.00012924,2]
[329909440,1718823040160,-150.0,0.00012925,2]
[329909441,1718823040169,-150.0,0.00012925,2]
[329909442,1718823040179,-150.0,0.00012926,2]
[329909443,1718823040190,-150.0,0.00012926,2]
[329909444,1718823040200,-1500.0,0.00012926,2]
[329909445,1718823040211,-150.0,0.00012928,2]
[329909446,1718823040220,-300.0,0.00012928,2]
[329909447,1718823040231,-1500.0,0.0001293,2]
[329909448,1718823040240,-151.0,0.00012933,2]
[329909449,1718823040250,-172.340601,0.00012933,2]
[329909450,1718823040259,-150.0,0.00012935,2]
[329909451,1718823040269,-150.0,0.00012936,2]
[329909454,1718823040279,-150.0,0.00012937,2]
[329909456,1718823040289,-150.0,0.00012938,2]
[329909459,1718823040300,-150.0,0.0001294,2]
[329909460,1718823040310,-1493.01619128,0.00012941,2]
[329909461,1718823040320,-150.0,0.00012942,2]
[329909462,1718823040331,-150.0,0.00012942,2]
[329909463,1718823040340,-1500.0,0.00012942,2]
[329909464,1718823040351,-150.0,0.00012943,2]
[329909465,1718823040361,-1500.0,0.00012943,2]
[329909466,1718823040384,-221.52804601,0.00012947,2]
[329909467,1718823040396,-300.0,0.0001295,2]
[329909468,1718823040406,-1500.0,0.00012951,2]
[329909469,1718823040416,-150.0,0.00012953,2]
[329909470,1718823040426,-1500.0,0.00012953,2]
[329909471,1718823040435,-150.0,0.00012955,2]
[329909472,1718823040445,-300.0,0.00012959,2]
[329909473,1718823040454,-300.0,0.00012962,2]
[329909474,1718823040464,-1500.0,0.00012964,2]
[329909475,1718823040474,-1500.0,0.00012964,2]
[329909476,1718823040484,-150.0,0.00012966,2]
[329909477,1718823040495,-1500.0,0.00012966,2]
[329909478,1718823040505,-1500.0,0.00012968,2]
[329909479,1718823040516,-150.0,0.00012969,2]
[329909480,1718823040525,-1799.04626,0.0001297,2]
[329909481,1718823040559,-1500.0,0.0001297,2]
[329909482,1718823040576,-150.0,0.00012971,2]
[329909483,1718823040593,-150.0,0.00012974,2]
[329909484,1718823040608,-150.0,0.00012975,2]
[329909485,1718823040622,-150.0,0.00012977,2]
[329909486,1718823040641,-150.0,0.00012979,2]
[329909487,1718823040657,-397.89000003,0.0001298,2]
[329909488,1718823040673,-150.0,0.0001298,2]
[329909489,1718823040688,-1500.0,0.0001298,2]
[329909490,1718823040704,-300.0,0.00012981,2]
[329909491,1718823040721,-150.0,0.00012982,2]
[329909492,1718823040737,-150.0,0.00012985,2]
[329909493,1718823040750,-1500.0,0.00012986,2]
[329909494,1718823040769,-150.0,0.00012987,2]
[329909495,1718823040789,-150.0,0.00012988,2]
[329909496,1718823040807,-150.0,0.00012988,2]
[329909497,1718823040821,-150.0,0.0001299,2]
[329909498,1718823040836,-164.71848981,0.0001299,2]
[329909499,1718823040849,-164.71848981,0.0001299,2]
[329909500,1718823040862,-5854.67741357,0.00012991,2]
[329909501,1718823040874,-211.199347,0.00012991,2]
[329909502,1718823040889,-152.035304,0.00012991,2]
[329909503,1718823040903,-1500.0,0.00012991,2]
[329909504,1718823040917,-3492.0,0.00012992,2]
[329909505,1718823040933,-150.0,0.00012996,2]
[329909506,1718823040948,-246.10931793,0.00012998,2]
[329909507,1718823040961,-205.15170629,0.00012998,2]
[329909508,1718823040973,-2192.06643308,0.00012998,2]
[329909509,1718823040985,-155.0,0.00012998,2]
[329909510,1718823041000,-2196.89348564,0.00012998,2]
[329909511,1718823041014,-155.0,0.00012998,2]
[329909512,1718823041030,-156.06991169,0.00012998,2]
[329909513,1718823041041,-1262.17951674,0.00012999,2]
[329909514,1718823041054,-150.01,0.00012999,2]
[329909515,1718823041068,-2615.45991465,0.00012999,2]
[329909516,1718823041083,-150.0,0.00012999,2]
[329909517,1718823041104,-947765.42971263,0.00013,2]
[329909518,1718823041122,-735.33420139,0.00013,2]
[329909519,1718823041137,-3378.6,0.00013,2]
[329909520,1718823041176,-425.81511563,0.00013,2]
[329909521,1718823041196,-356.61215228,0.00013,2]
[329909522,1718823041213,-674.10473515,0.00013,2]
[329909523,1718823041233,-1920.38628,0.00013,2]
[329909524,1718823041251,-7687.92028706,0.00013,2]
[329909525,1718823041267,-358.005,0.00013,2]
[329909555,1718823042312,-150.0,0.00012877,2]
[329909556,1718823042327,-734.29427894,0.00013,2]
[329909557,1718823042342,-345.1849985,0.00013,2]
[329909558,1718823042357,-1476.6540648,0.00013,2]
[329909559,1718823042372,-993.28232923,0.00013,2]
[329909560,1718823042409,-1201.23505853,0.00013,2]
[329909561,1718823042423,-381.5246191,0.00013,2]
[329909562,1718823042438,-471.98,0.00013,2]
[329909563,1718823042453,-17186.31877508,0.00013,2]
[329909564,1718823042468,-3650.30341244,0.00013,2]
[329909568,1718823044425,-150.0,0.00012807,2]
[329909569,1718823044436,-150.0,0.0001285,2]
[329909570,1718823044445,-155.0,0.00012872,2]
[329909571,1718823044455,-126.0441249,0.00012873,2]
[329909572,1718823044467,-23.9558751,0.00012873,2]
[329909573,1718823044476,-150.0,0.00012888,2]
[329909574,1718823044486,-150.0,0.00012902,2]
[329909575,1718823044495,-150.0,0.00012906,2]
[329909576,1718823044504,-159.00439288,0.0001292,2]
[329909577,1718823044514,-405.17359116,0.00013,2]
[329909578,1718823044525,-428.03097649,0.00013,2]
[329909579,1718823044537,-666.8,0.00013,2]
[329909580,1718823044548,-520657.12387708,0.00013,2]
[329909581,1718823044565,-1446.5731672,0.00013,2]
[329909582,1718823044577,-7140.0,0.00013,2]
[329909583,1718823044751,-7466.78139312,0.00013,2]
[329909594,1718823046592,-150.0,0.00012647,2]
[329909597,1718823046603,-150.0,0.00012699,2]
[329909599,1718823046613,-150.0,0.00012782,2]
[329909601,1718823046623,-150.0,0.00012807,2]
[329909604,1718823046636,-5.67764587,0.00012815,2]
[329909607,1718823046647,-144.32235413,0.00012815,2]
[329909610,1718823046657,-150.0,0.00012893,2]
[329909613,1718823046667,-215.68440392,0.00013,2]
[329909626,1718823049148,-150.0,0.00012681,2]
[329909627,1718823049158,-150.0,0.00012689,2]
[329909628,1718823049168,-150.0,0.00012751,2]
[329909629,1718823049177,-150.0,0.00012828,2]
[329909630,1718823049187,-150.0,0.00012852,2]
[329909631,1718823049196,-150.0,0.00012875,2]
[329909632,1718823049206,-1401.10079766,0.00013,2]
[329909633,1718823049220,-573.43013765,0.00013,2]
[329909634,1718823051129,1318.72085065,0.0001,2]
[329909635,1718823051759,180.91246008,0.0001,2]
[329909636,1718823070131,200.83120187,0.0001,2]
[329909637,1718823076217,948.6865,0.0001,2]
[329909638,1718823076930,6404.6859371,0.0001,2]
[329909639,1718823081131,4619.52597616,0.0001,2]
[329909640,1718823089601,219.28826757,0.0001,2]
[329909643,1718823328455,171.91,9.501e-05,2]
[329909644,1718823377462,4929.059087,0.00026,90]
[329909655,1718823613542,522.9,9.751e-05,2]
[329909657,1718823687518,96341.0257086,9.751e-05,2]
[329909658,1718823689599,18359.78719381,9.751e-05,2]
[329909659,1718823852827,500.0,9.501e-05,2]
[329909660,1718823853251,500.0,9.501e-05,2]
[329909661,1718823853676,500.0,9.501e-05,2]
[329909662,1718823853731,500.0,9.501e-05,2]
[329909663,1718823854023,704.0,9.501e-05,2]
[329909664,1718823855276,500.0,9.501e-05,2]
[329909665,1718823855425,500.0,9.501e-05,2]
[329909666,1718823855563,500.0,9.501e-05,2]
[329909667,1718823855680,500.0,9.501e-05,2]
[329909668,1718823856704,500.0,9.501e-05,2]
[329909669,1718823857606,500.0,9.501e-05,2]
[329909670,1718823858067,500.0,9.501e-05,2]
[329909671,1718823858426,500.0,9.501e-05,2]
[329909672,1718823858963,500.0,9.501e-05,2]
[329909673,1718823859291,500.0,9.501e-05,2]
[329909674,1718823859624,986.0,9.501e-05,2]
[329909679,1718824165803,496.75,9.859e-05,2]
[329909680,1718824232392,-478.86606755,0.00011615,2]
[329909684,1718824232401,-192.05393245,0.00011616,2]
[329909691,1718824232699,-104.2538422,0.00011616,2]
[329909692,1718824232709,-449.77064763,0.00011616,2]
[329909693,1718824232718,-328.31347017,0.00011617,2]
[329909694,1718824232728,-724.99060253,0.00011617,2]
[329909695,1718824232741,-775.26273371,0.00011617,2]
[329909696,1718824232750,-203.86,0.00011691,2]
[329909697,1718824232759,-1381.35242628,0.00011714,2]
[329909698,1718824232770,-465.83281295,0.00011714,2]
[329909699,1718824232781,-471.77476077,0.00011714,2]
[329909700,1718824232790,-202.6742021,0.00011715,2]
[329909701,1718824232801,-47.3257979,0.00011715,2]
[329909702,1718824232810,-336.27420206,0.00011731,2]
[329909703,1718824232821,-663.72579794,0.00011731,2]
[329909704,1718824232830,-499.99,0.00011731,2]
[329909705,1718824232839,-446.94,0.00011735,2]
[329909706,1718824232848,-150.99,0.00011735,2]
[329909707,1718824232857,-500.0,0.00011736,2]
[329909708,1718824232866,-3041.49,0.00011754,2]
[329909709,1718824232875,-2683.87844844,0.00011779,2]
[329909710,1718824232886,-5151.0,0.00011779,2]
[329909711,1718824232898,-16055.12155156,0.00011779,2]
[329909712,1718824232908,-163.4,0.00011908,2]
[329909713,1718824232918,-496.75,0.00012123,2]
[329909714,1718824232927,-1302.76719431,0.00012348,2]
[329909715,1718824232936,-300.0,0.000124,4]
[329909716,1718824232946,-700.0,0.000125,4]
[329909717,1718824232956,-1100.0,0.000126,4]
[329909718,1718824232970,-2999.6359,0.00012629,2]
[329909719,1718824232978,-360.76,0.000127,2]
[329909720,1718824232988,-1400.0,0.000127,4]
[329909721,1718824233000,-1000.0,0.000127,2]
[329909723,1718824233010,-150.0,0.00012735,2]
[329909725,1718824233020,-150.0,0.00012744,2]
[329909726,1718824233029,-150.0,0.00012744,2]
[329909727,1718824233039,-150.0,0.00012753,2]
[329909728,1718824233051,-150.0,0.00012754,2]
[329909729,1718824233060,-150.0,0.00012756,2]
[329909730,1718824233070,-150.0,0.00012756,2]
[329909731,1718824233079,-150.0,0.00012756,2]
[329909732,1718824233088,-150.0,0.00012757,2]
[329909733,1718824233097,-150.0,0.0001276,2]
[329909734,1718824233107,-150.0,0.00012763,2]
[329909735,1718824233115,-150.0,0.00012763,2]
[329909736,1718824233124,-150.0,0.00012768,2]
[329909737,1718824233133,-150.0,0.00012768,2]
[329909738,1718824233143,-150.0,0.00012772,2]
[329909739,1718824233153,-150.0,0.00012773,2]
[329909740,1718824233162,-150.0,0.0001278,2]
[329909741,1718824233171,-150.0,0.00012783,2]
[329909742,1718824233180,-150.0,0.00012784,2]
[329909743,1718824233189,-150.0,0.00012791,2]
[329909744,1718824233198,-150.0,0.00012797,2]
[329909745,1718824233209,-150.0,0.00012798,2]
[329909746,1718824233218,-150.0,0.00012798,2]
[329909747,1718824233227,-7189.487,0.00012799,2]
[329909748,1718824233237,-150.0,0.00012799,2]
[329909749,1718824233246,-9036.2442,0.000128,2]
[329909750,1718824233256,-1800.0,0.000128,4]
[329909751,1718824233265,-2500.0,0.000128,2]
[329909752,1718824233275,-1620.0,0.000128,2]
[329909753,1718824233283,-150.0,0.00012804,2]
[329909754,1718824233293,-150.0,0.00012806,2]
[329909755,1718824233302,-150.0,0.00012809,2]
[329909756,1718824233311,-150.0,0.00012813,2]
[329909757,1718824233321,-150.0,0.00012815,2]
[329909758,1718824233330,-150.0,0.00012817,2]
[329909759,1718824233340,-150.0,0.00012817,2]